Workbook

Sheet č.1 z 7.1.2018
A1: Svazek obcí za letištěm | D1: IČO: 70960925
A3: datum: 7.1.2018 | C3: Rozpočtové opatření provedené předsedou svazku | G3: č. 1
A5: Příjmy
A7: paragraf | B7: položka | C7: popis | D7: rozpočet schválený | E7: rozpočet po předchozích změnách | F7: r.opatření č.1 | G7: rozpočet po všech změnách
B8: 4121 | C8: neinvestiční přijaté dotace od obcí (30,- Kč/obyv.) | D8: 144,660.00 Kč | E8: 144,660.00 Kč | F8: 4,350.00 Kč | G8: =E8+F8 -> 149,010.00 Kč
C9: Barchov - 209 obyvatel | D9: 5,730.00 Kč | E9: 5,730.00 Kč | F9: 540.00 Kč | G9: =E9+F9 -> 6,270.00 Kč
C10: Čepí - 437 obyvatel | D10: 12,840.00 Kč | E10: 12,840.00 Kč | F10: 270.00 Kč | G10: =E10+F10 -> 13,110.00 Kč
C11: Dřenice - 406 obyvatel | D11: 11,460.00 Kč | E11: 11,460.00 Kč | F11: 720.00 Kč | G11: 12,180.00 Kč
C12: Dubany - 269 obyvatel | D12: 7,980.00 Kč | E12: 7,980.00 Kč | F12: 90.00 Kč | G12: 8,070.00 Kč
C13: Mikulovice .- 1236 obyvatel | D13: 35,730.00 Kč | E13: 35,730.00 Kč | F13: 1,350.00 Kč | G13: 37,080.00 Kč
C14: Ostřešany - 1058 obyvatel | D14: 31,530.00 Kč | E14: 31,530.00 Kč | F14: 210.00 Kč | G14: 31,740.00 Kč
C15: Srnojedy - 704 obyvatel | D15: 20,640.00 Kč | E15: 20,640.00 Kč | F15: 480.00 Kč | G15: 21,120.00 Kč
C16: Staré Jesenčany - 413 obyvatel | D16: 12,000.00 Kč | E16: 12,000.00 Kč | F16: 390.00 Kč | G16: 12,390.00 Kč
C17: Třebosice - 235 obyvatel | D17: 6,750.00 Kč | E17: 6,750.00 Kč | F17: 300.00 Kč | G17: 7,050.00 Kč
A18: 3639 | B18: 2111 | C18: komun.sl.a úz.rozvoj / příjmy z poskyt.služeb a výrobků | D18: 0.00 Kč | E18: 0.00 Kč | F18: 30,000.00 Kč | G18: 30,000.00 Kč
A19: Celkem příjmy | F19: =F18+F8 -> 34,350.00 Kč
A21: Výdaje
A23: paragraf | B23: položka | C23: popis | D23: rozpočet schválený | E23: rozpočet po předchozích změnách | F23: r.opatření č.1 | G23: rozpočet po všech změnách
A24: 3639 | B24: 5169 | C24: služby, akce | D24: 51,990.00 Kč | E24: 51,990.00 Kč | F24: 34,350.00 Kč | G24: =E24+F24 -> 86,340.00 Kč
A26: Celkem výdaje | F26: =SUM(F24:F25) -> 34,350.00 Kč
A28: V Ostřešanech:
C29: Mgr. Josef Vodrážka
C30: předseda svazku

Sheet č.2 z 3.5.2018
A1: Svazek obcí za letištěm | D1: IČO: 70960925
A3: datum: 3.5.2018 | C3: Rozpočtové opatření | G3: č. 2
A5: Příjmy
A7: paragraf | B7: položka | C7: popis | D7: rozpočet schválený | E7: rozpočet po předchozích změnách | F7: r.opatření č.2 | G7: rozpočet po všech změnách
B8: 8115 | C8: zůstatek z roku 2017 | D8: 0.00 Kč | E8: 0.00 Kč | F8: 207,570.92 Kč | G8: =E8+F8 -> 207,570.92 Kč
A16: Celkem příjmy | F16: =SUM(F8:F15) -> 207,570.92 Kč
A18: Výdaje
A20: paragraf | B20: položka | C20: popis | D20: rozpočet schválený | E20: rozpočet po předchozích změnách | F20: r.opatření č.2 | G20: rozpočet po všech změnách
A21: 3639 | B21: 5169 | C21: služby, akce | D21: 51,990.00 Kč | E21: 86,340.00 Kč | F21: 207,570.92 Kč | G21: =E21+F21 -> 293,910.92 Kč
A28: Celkem výdaje | F28: =SUM(F21:F27) -> 207,570.92 Kč
A30: V Ostřešanech:
C31: Mgr. Josef Vodrážka
C32: předseda svazku

Sheet č.3 z 10.5.2018
A1: Svazek obcí za letištěm | D1: IČO: 70960925
A3: datum: 10.5.2018 | C3: Rozpočtové opatření provedené předsedou svazku | G3: č. 3
A5: Příjmy
A7: paragraf | B7: položka | C7: popis | D7: rozpočet schválený | E7: rozpočet po předchozích změnách | F7: r.opatření č.3 | G7: rozpočet po všech změnách
B8: 4122 | C8: bez paragrafu / neinvestiční přijaté transfery od krajů | D8: 0.00 Kč | E8: 0.00 Kč | F8: 700,000.00 Kč | G8: =E8+F8 -> 700,000.00 Kč
A16: Celkem příjmy | F16: =SUM(F8:F15) -> 700,000.00 Kč
A18: Výdaje
A20: paragraf | B20: položka | C20: popis | D20: rozpočet schválený | E20: rozpočet po předchozích změnách | F20: r.opatření č.3 | G20: rozpočet po všech změnách
A21: 3639 | B21: 5909 | C21: komun.sl.a úz.rozvoj / ost.neinv.výdaje | D21: 0.00 Kč | E21: 0.00 Kč | F21: 500,000.00 Kč | G21: =E21+F21 -> 500,000.00 Kč
A22: 3639 | B22: 5167 | C22: komun.sl.a úz.rozvoj / služby školení a vzdělávání | D22: 0.00 Kč | E22: 0.00 Kč | F22: 200,000.00 Kč | G22: =E22+F22 -> 200,000.00 Kč
A28: Celkem výdaje | F28: =SUM(F21:F27) -> 700,000.00 Kč
A30: V Ostřešanech:
C31: Mgr. Josef Vodrážka
C32: předseda svazku

Sheet č.4 z 10.6.2018
A1: Svazek obcí za letištěm | D1: IČO: 70960925
A3: datum: 10.5.2018 | B3: 2018-06-10 | C3: Rozpočtové opatření provedené předsedou svazku | G3: č. 4
A5: Příjmy
A7: paragraf | B7: položka | C7: popis | D7: rozpočet schválený | E7: rozpočet po předchozích změnách | F7: r.opatření č.4 | G7: rozpočet po všech změnách
A16: Celkem příjmy | F16: =SUM(F8:F15) -> 0.00 Kč
A18: Výdaje
A20: paragraf | B20: položka | C20: popis | D20: rozpočet schválený | E20: rozpočet po předchozích změnách | F20: r.opatření č.4 | G20: rozpočet po všech změnách
A21: 3639 | B21: 5169 | C21: komu.služby a územní rozvoj / nákup ostatních sužeb | D21: 51,990.00 Kč | E21: 293,910.92 Kč | F21: -150,000.00 Kč | G21: =E21+F21 -> 143,910.92 Kč
A22: 3639 | B22: 5171 | C22: komu.služby a územní rozvoj / opravy a udržování | D22: 0.00 Kč | E22: 0.00 Kč | F22: 150,000.00 Kč | G22: =E22+F22 -> 150,000.00 Kč
A28: Celkem výdaje | F28: =SUM(F21:F27) -> 0.00 Kč
A30: V Ostřešanech:
C31: Mgr. Josef Vodrážka
C32: předseda svazku

Sheet č.5 z 15.6.2018
A1: Svazek obcí za letištěm | D1: IČO: 70960925
A3: datum: 10.5.2018 | B3: 2018-06-15 | C3: Rozpočtové opatření provedené předsedou svazku | G3: č. 5
A5: Příjmy
A7: paragraf | B7: položka | C7: popis | D7: rozpočet schválený | E7: rozpočet po předchozích změnách | F7: r.opatření č.5 | G7: rozpočet po všech změnách
A16: Celkem příjmy | F16: =SUM(F8:F15) -> 0.00 Kč
A18: Výdaje
A20: paragraf | B20: položka | C20: popis | D20: rozpočet schválený | E20: rozpočet po předchozích změnách | F20: r.opatření č.5 | G20: rozpočet po všech změnách
A21: 3639 | B21: 5169 | C21: komu.služby a územní rozvoj / nákup ostatních sužeb | D21: 51,990.00 Kč | E21: 143,910.92 Kč | F21: -140,000.00 Kč | G21: =E21+F21 -> 3,910.92 Kč
A22: 3639 | B22: 5171 | C22: komu.služby a územní rozvoj / opravy a udržování | D22: 0.00 Kč | E22: 150,000.00 Kč | F22: 140,000.00 Kč | G22: =E22+F22 -> 290,000.00 Kč
A28: Celkem výdaje | F28: =SUM(F21:F27) -> 0.00 Kč
A30: V Ostřešanech:
C31: Mgr. Josef Vodrážka
C32: předseda svazku
